{"text_format":"1","workbook":"xlsx","n_sheets":14,"sheets":["Main","Example","محمود الخطيب","رضا إسماعيل","عمر فتحى","محمد إدريس","زياد فؤاد","إياد ياسر","توفيقة وليد","وليد سيد","حمادة ذكى","أحمد علي","توفيق الدقن","حبيبة متولى"],"not_rendered":{"charts":0,"images":0,"macros":1,"external_links":0,"defined_names":0,"comments":0,"pivot_tables":0},"unopened":[],"bounds":{"document_bytes":16777216,"sheet_cells":100000,"rows_first":2000,"rows_last":500,"rows_between":2000,"halvings":0,"cell_chars":16384,"cell_head_chars":4096},"cells_cut":0,"cells_raw":0,"read":"whole","date_system":"1900"}

{"sheet":"Main","index":0,"n_rows":16,"n_cols":8,"rows_kept":16,"cut":false,"hidden":false,"merged":[]}
[]
[]
[]
[null,"الاسم","المبلغ",null,null,null,null,"Example"]
[null,"محمود الخطيب",200,null,null,null,null,"محمود الخطيب"]
[null,"رضا إسماعيل",180,null,null,null,null,"رضا إسماعيل"]
[null,"عمر فتحى",130,null,null,null,null,"عمر فتحى"]
[null,"محمد إدريس",120,null,null,null,null,"محمد إدريس"]
[null,"زياد فؤاد",110,null,null,null,null,"زياد فؤاد"]
[null,"إياد ياسر",45,null,null,null,null,"إياد ياسر"]
[null,"توفيقة وليد",191,null,null,null,null,"توفيقة وليد"]
[null,"وليد سيد",210,null,null,null,null,"وليد سيد"]
[null,"حمادة ذكى",345,null,null,null,null,"حمادة ذكى"]
[null,"أحمد علي",510,null,null,null,null,"أحمد علي"]
[null,"توفيق الدقن",710,null,null,null,null,"توفيق الدقن"]
[null,"حبيبة متولى",275,null,null,null,null,"حبيبة متولى"]

{"sheet":"Example","index":1,"n_rows":22,"n_cols":7,"rows_kept":22,"cut":false,"hidden":false,"merged":[]}
[]
[]
[]
[]
[null,"الكود",{"$f":"VLOOKUP($C$6,Main!$B$5:$C$251,2,0)","v":{"$error":"#N/A"}}]
[null,"الاسم"]
[]
[null,"م","التاريخ","البيان","مدين","دائن","رصيد"]
[null,null,null,null,null,null,{"$f":"0+E9-F9","v":0}]
[null,null,null,null,null,null,{"$f":"+G9+E10-F10","v":0}]
[null,null,null,null,null,null,{"$f":"+G10+E11-F11","v":0}]
[null,null,null,null,null,null,0]
[null,null,null,null,null,null,0]
[null,null,null,null,null,null,0]
[null,null,null,null,null,null,0]
[null,null,null,null,null,null,0]
[null,null,null,null,null,null,0]
[null,null,null,null,null,null,0]
[null,null,null,null,null,null,0]
[null,null,null,null,null,null,0]
[null,null,null,null,null,null,0]
[null,null,null,null,null,null,0]

{"sheet":"محمود الخطيب","index":2,"n_rows":22,"n_cols":7,"rows_kept":22,"cut":false,"hidden":false,"merged":[]}
[]
[]
[]
[]
[null,"الكود",{"$f":"VLOOKUP($C$6,Main!$B$5:$C$251,2,0)","v":200}]
[null,"الاسم","محمود الخطيب"]
[]
[null,"م","التاريخ","البيان","مدين","دائن","رصيد"]
[null,null,null,null,null,null,{"$f":"0+E9-F9","v":0}]
[null,null,null,null,null,null,{"$f":"+G9+E10-F10","v":0}]
[null,null,null,null,null,null,{"$f":"+G10+E11-F11","v":0}]
[null,null,null,null,null,null,0]
[null,null,null,null,null,null,0]
[null,null,null,null,null,null,0]
[null,null,null,null,null,null,0]
[null,null,null,null,null,null,0]
[null,null,null,null,null,null,0]
[null,null,null,null,null,null,0]
[null,null,null,null,null,null,0]
[null,null,null,null,null,null,0]
[null,null,null,null,null,null,0]
[null,null,null,null,null,null,0]

{"sheet":"رضا إسماعيل","index":3,"n_rows":22,"n_cols":7,"rows_kept":22,"cut":false,"hidden":false,"merged":[]}
[]
[]
[]
[]
[null,"الكود",{"$f":"VLOOKUP($C$6,Main!$B$5:$C$251,2,0)","v":180}]
[null,"الاسم","رضا إسماعيل"]
[]
[null,"م","التاريخ","البيان","مدين","دائن","رصيد"]
[null,null,null,null,null,null,{"$f":"0+E9-F9","v":0}]
[null,null,null,null,null,null,{"$f":"+G9+E10-F10","v":0}]
[null,null,null,null,null,null,{"$f":"+G10+E11-F11","v":0}]
[null,null,null,null,null,null,0]
[null,null,null,null,null,null,0]
[null,null,null,null,null,null,0]
[null,null,null,null,null,null,0]
[null,null,null,null,null,null,0]
[null,null,null,null,null,null,0]
[null,null,null,null,null,null,0]
[null,null,null,null,null,null,0]
[null,null,null,null,null,null,0]
[null,null,null,null,null,null,0]
[null,null,null,null,null,null,0]

{"sheet":"عمر فتحى","index":4,"n_rows":22,"n_cols":7,"rows_kept":22,"cut":false,"hidden":false,"merged":[]}
[]
[]
[]
[]
[null,"الكود",{"$f":"VLOOKUP($C$6,Main!$B$5:$C$251,2,0)","v":130}]
[null,"الاسم","عمر فتحى"]
[]
[null,"م","التاريخ","البيان","مدين","دائن","رصيد"]
[null,null,null,null,null,null,{"$f":"0+E9-F9","v":0}]
[null,null,null,null,null,null,{"$f":"+G9+E10-F10","v":0}]
[null,null,null,null,null,null,{"$f":"+G10+E11-F11","v":0}]
[null,null,null,null,null,null,0]
[null,null,null,null,null,null,0]
[null,null,null,null,null,null,0]
[null,null,null,null,null,null,0]
[null,null,null,null,null,null,0]
[null,null,null,null,null,null,0]
[null,null,null,null,null,null,0]
[null,null,null,null,null,null,0]
[null,null,null,null,null,null,0]
[null,null,null,null,null,null,0]
[null,null,null,null,null,null,0]

{"sheet":"محمد إدريس","index":5,"n_rows":22,"n_cols":7,"rows_kept":22,"cut":false,"hidden":false,"merged":[]}
[]
[]
[]
[]
[null,"الكود",{"$f":"VLOOKUP($C$6,Main!$B$5:$C$251,2,0)","v":120}]
[null,"الاسم","محمد إدريس"]
[]
[null,"م","التاريخ","البيان","مدين","دائن","رصيد"]
[null,null,null,null,null,null,{"$f":"0+E9-F9","v":0}]
[null,null,null,null,null,null,{"$f":"+G9+E10-F10","v":0}]
[null,null,null,null,null,null,{"$f":"+G10+E11-F11","v":0}]
[null,null,null,null,null,null,0]
[null,null,null,null,null,null,0]
[null,null,null,null,null,null,0]
[null,null,null,null,null,null,0]
[null,null,null,null,null,null,0]
[null,null,null,null,null,null,0]
[null,null,null,null,null,null,0]
[null,null,null,null,null,null,0]
[null,null,null,null,null,null,0]
[null,null,null,null,null,null,0]
[null,null,null,null,null,null,0]

{"sheet":"زياد فؤاد","index":6,"n_rows":22,"n_cols":7,"rows_kept":22,"cut":false,"hidden":false,"merged":[]}
[]
[]
[]
[]
[null,"الكود",{"$f":"VLOOKUP($C$6,Main!$B$5:$C$251,2,0)","v":110}]
[null,"الاسم","زياد فؤاد"]
[]
[null,"م","التاريخ","البيان","مدين","دائن","رصيد"]
[null,null,null,null,null,null,{"$f":"0+E9-F9","v":0}]
[null,null,null,null,null,null,{"$f":"+G9+E10-F10","v":0}]
[null,null,null,null,null,null,{"$f":"+G10+E11-F11","v":0}]
[null,null,null,null,null,null,0]
[null,null,null,null,null,null,0]
[null,null,null,null,null,null,0]
[null,null,null,null,null,null,0]
[null,null,null,null,null,null,0]
[null,null,null,null,null,null,0]
[null,null,null,null,null,null,0]
[null,null,null,null,null,null,0]
[null,null,null,null,null,null,0]
[null,null,null,null,null,null,0]
[null,null,null,null,null,null,0]

{"sheet":"إياد ياسر","index":7,"n_rows":22,"n_cols":7,"rows_kept":22,"cut":false,"hidden":false,"merged":[]}
[]
[]
[]
[]
[null,"الكود",{"$f":"VLOOKUP($C$6,Main!$B$5:$C$251,2,0)","v":45}]
[null,"الاسم","إياد ياسر"]
[]
[null,"م","التاريخ","البيان","مدين","دائن","رصيد"]
[null,null,null,null,null,null,{"$f":"0+E9-F9","v":0}]
[null,null,null,null,null,null,{"$f":"+G9+E10-F10","v":0}]
[null,null,null,null,null,null,{"$f":"+G10+E11-F11","v":0}]
[null,null,null,null,null,null,0]
[null,null,null,null,null,null,0]
[null,null,null,null,null,null,0]
[null,null,null,null,null,null,0]
[null,null,null,null,null,null,0]
[null,null,null,null,null,null,0]
[null,null,null,null,null,null,0]
[null,null,null,null,null,null,0]
[null,null,null,null,null,null,0]
[null,null,null,null,null,null,0]
[null,null,null,null,null,null,0]

{"sheet":"توفيقة وليد","index":8,"n_rows":22,"n_cols":7,"rows_kept":22,"cut":false,"hidden":false,"merged":[]}
[]
[]
[]
[]
[null,"الكود",{"$f":"VLOOKUP($C$6,Main!$B$5:$C$251,2,0)","v":191}]
[null,"الاسم","توفيقة وليد"]
[]
[null,"م","التاريخ","البيان","مدين","دائن","رصيد"]
[null,null,null,null,null,null,{"$f":"0+E9-F9","v":0}]
[null,null,null,null,null,null,{"$f":"+G9+E10-F10","v":0}]
[null,null,null,null,null,null,{"$f":"+G10+E11-F11","v":0}]
[null,null,null,null,null,null,0]
[null,null,null,null,null,null,0]
[null,null,null,null,null,null,0]
[null,null,null,null,null,null,0]
[null,null,null,null,null,null,0]
[null,null,null,null,null,null,0]
[null,null,null,null,null,null,0]
[null,null,null,null,null,null,0]
[null,null,null,null,null,null,0]
[null,null,null,null,null,null,0]
[null,null,null,null,null,null,0]

{"sheet":"وليد سيد","index":9,"n_rows":22,"n_cols":7,"rows_kept":22,"cut":false,"hidden":false,"merged":[]}
[]
[]
[]
[]
[null,"الكود",{"$f":"VLOOKUP($C$6,Main!$B$5:$C$251,2,0)","v":210}]
[null,"الاسم","وليد سيد"]
[]
[null,"م","التاريخ","البيان","مدين","دائن","رصيد"]
[null,null,null,null,null,null,{"$f":"0+E9-F9","v":0}]
[null,null,null,null,null,null,{"$f":"+G9+E10-F10","v":0}]
[null,null,null,null,null,null,{"$f":"+G10+E11-F11","v":0}]
[null,null,null,null,null,null,0]
[null,null,null,null,null,null,0]
[null,null,null,null,null,null,0]
[null,null,null,null,null,null,0]
[null,null,null,null,null,null,0]
[null,null,null,null,null,null,0]
[null,null,null,null,null,null,0]
[null,null,null,null,null,null,0]
[null,null,null,null,null,null,0]
[null,null,null,null,null,null,0]
[null,null,null,null,null,null,0]

{"sheet":"حمادة ذكى","index":10,"n_rows":22,"n_cols":7,"rows_kept":22,"cut":false,"hidden":false,"merged":[]}
[]
[]
[]
[]
[null,"الكود",{"$f":"VLOOKUP($C$6,Main!$B$5:$C$251,2,0)","v":345}]
[null,"الاسم","حمادة ذكى"]
[]
[null,"م","التاريخ","البيان","مدين","دائن","رصيد"]
[null,null,null,null,null,null,{"$f":"0+E9-F9","v":0}]
[null,null,null,null,null,null,{"$f":"+G9+E10-F10","v":0}]
[null,null,null,null,null,null,{"$f":"+G10+E11-F11","v":0}]
[null,null,null,null,null,null,0]
[null,null,null,null,null,null,0]
[null,null,null,null,null,null,0]
[null,null,null,null,null,null,0]
[null,null,null,null,null,null,0]
[null,null,null,null,null,null,0]
[null,null,null,null,null,null,0]
[null,null,null,null,null,null,0]
[null,null,null,null,null,null,0]
[null,null,null,null,null,null,0]
[null,null,null,null,null,null,0]

{"sheet":"أحمد علي","index":11,"n_rows":22,"n_cols":7,"rows_kept":22,"cut":false,"hidden":false,"merged":[]}
[]
[]
[]
[]
[null,"الكود",{"$f":"VLOOKUP($C$6,Main!$B$5:$C$251,2,0)","v":510}]
[null,"الاسم","أحمد علي"]
[]
[null,"م","التاريخ","البيان","مدين","دائن","رصيد"]
[null,null,null,null,null,null,{"$f":"0+E9-F9","v":0}]
[null,null,null,null,null,null,{"$f":"+G9+E10-F10","v":0}]
[null,null,null,null,null,null,{"$f":"+G10+E11-F11","v":0}]
[null,null,null,null,null,null,0]
[null,null,null,null,null,null,0]
[null,null,null,null,null,null,0]
[null,null,null,null,null,null,0]
[null,null,null,null,null,null,0]
[null,null,null,null,null,null,0]
[null,null,null,null,null,null,0]
[null,null,null,null,null,null,0]
[null,null,null,null,null,null,0]
[null,null,null,null,null,null,0]
[null,null,null,null,null,null,0]

{"sheet":"توفيق الدقن","index":12,"n_rows":22,"n_cols":7,"rows_kept":22,"cut":false,"hidden":false,"merged":[]}
[]
[]
[]
[]
[null,"الكود",{"$f":"VLOOKUP($C$6,Main!$B$5:$C$251,2,0)","v":710}]
[null,"الاسم","توفيق الدقن"]
[]
[null,"م","التاريخ","البيان","مدين","دائن","رصيد"]
[null,null,null,null,null,null,{"$f":"0+E9-F9","v":0}]
[null,null,null,null,null,null,{"$f":"+G9+E10-F10","v":0}]
[null,null,null,null,null,null,{"$f":"+G10+E11-F11","v":0}]
[null,null,null,null,null,null,0]
[null,null,null,null,null,null,0]
[null,null,null,null,null,null,0]
[null,null,null,null,null,null,0]
[null,null,null,null,null,null,0]
[null,null,null,null,null,null,0]
[null,null,null,null,null,null,0]
[null,null,null,null,null,null,0]
[null,null,null,null,null,null,0]
[null,null,null,null,null,null,0]
[null,null,null,null,null,null,0]

{"sheet":"حبيبة متولى","index":13,"n_rows":22,"n_cols":7,"rows_kept":22,"cut":false,"hidden":false,"merged":[]}
[]
[]
[]
[]
[null,"الكود",{"$f":"VLOOKUP($C$6,Main!$B$5:$C$251,2,0)","v":275}]
[null,"الاسم","حبيبة متولى"]
[]
[null,"م","التاريخ","البيان","مدين","دائن","رصيد"]
[null,null,null,null,null,null,{"$f":"0+E9-F9","v":0}]
[null,null,null,null,null,null,{"$f":"+G9+E10-F10","v":0}]
[null,null,null,null,null,null,{"$f":"+G10+E11-F11","v":0}]
[null,null,null,null,null,null,0]
[null,null,null,null,null,null,0]
[null,null,null,null,null,null,0]
[null,null,null,null,null,null,0]
[null,null,null,null,null,null,0]
[null,null,null,null,null,null,0]
[null,null,null,null,null,null,0]
[null,null,null,null,null,null,0]
[null,null,null,null,null,null,0]
[null,null,null,null,null,null,0]
[null,null,null,null,null,null,0]